[Event "Early-Titled-Tuesday-Blitz-February-20-2024"]
[Site "Chess.com"]
[Date "2024.02.20"]
[Round "4"]
[White "PattyCastillo"]
[Black "BallottiLuca"]
[Result "1-0"]
[WhiteElo "1960"]
[BlackElo "2414"]
[TimeControl "180+1"]
[EndTime "8:38:43 PST"]
[Termination "PattyCastillo won by resignation"]

1. d4 {[%clk 0:02:58.4]} 1... f5 {[%clk 0:03:00.3]} 2. Nf3 {[%clk 0:02:51.8]}
2... Nf6 {[%clk 0:02:59.3]} 3. e3 {[%clk 0:02:51.1]} 3... e6 {[%clk 0:02:59.7]}
4. Bd3 {[%clk 0:02:48.3]} 4... b6 {[%clk 0:02:58.7]} 5. O-O {[%clk 0:02:43.6]}
5... Bb7 {[%clk 0:02:59.1]} 6. c4 {[%clk 0:02:43.9]} 6... Be7 {[%clk 0:02:58.1]}
7. Nc3 {[%clk 0:02:44]} 7... O-O {[%clk 0:02:57.2]} 8. Qc2 {[%clk 0:02:44]} 8...
Qe8 {[%clk 0:02:53.3]} 9. e4 {[%clk 0:02:40.5]} 9... Qh5 {[%clk 0:02:52.9]} 10.
d5 {[%clk 0:02:32.6]} 10... fxe4 {[%clk 0:02:43.1]} 11. Nxe4 {[%clk 0:02:32.4]}
11... exd5 {[%clk 0:02:23.5]} 12. Nxf6+ {[%clk 0:02:17.6]} 12... Bxf6 {[%clk
0:02:22.5]} 13. Be3 {[%clk 0:01:57.7]} 13... d4 {[%clk 0:01:53.4]} 14. Nxd4
{[%clk 0:01:52.9]} 14... Bxd4 {[%clk 0:01:52.6]} 15. Bxd4 {[%clk 0:01:51.3]}
15... Qg4 {[%clk 0:01:32.2]} 16. Bxh7+ {[%clk 0:01:44.8]} 16... Kh8 {[%clk
0:01:32.3]} 17. f4 {[%clk 0:01:26.1]} 17... Nc6 {[%clk 0:01:11.9]} 18. Bc3
{[%clk 0:01:07.9]} 18... Ne7 {[%clk 0:00:54.1]} 19. Be4 {[%clk 0:01:00.4]} 19...
d5 {[%clk 0:00:48.8]} 20. Bf3 {[%clk 0:00:59]} 20... Qd7 {[%clk 0:00:18.6]} 21.
Rae1 {[%clk 0:00:54.4]} 21... d4 {[%clk 0:00:17.2]} 22. Bxb7 {[%clk 0:00:51.8]}
22... dxc3 {[%clk 0:00:15.2]} 23. Bxa8 {[%clk 0:00:51.5]} 23... Rxa8 {[%clk
0:00:11.6]} 24. Qe4 {[%clk 0:00:49.8]} 24... Nf5 {[%clk 0:00:10.3]} 25. Qxa8+
{[%clk 0:00:49.3]} 25... Kh7 {[%clk 0:00:10.8]} 26. Qe4 {[%clk 0:00:47.6]} 26...
g6 {[%clk 0:00:09.6]} 27. bxc3 {[%clk 0:00:47.3]} 27... Qd6 {[%clk 0:00:05.1]}
28. g4 {[%clk 0:00:44]} 28... Qc5+ {[%clk 0:00:04.8]} 29. Rf2 {[%clk 0:00:42.9]}
29... Nh4 {[%clk 0:00:02.8]} 30. Qe7+ {[%clk 0:00:42.3]} 1-0

[Event "Early-Titled-Tuesday-Blitz-February-20-2024"]
[Site "Chess.com"]
[Date "2024.02.20"]
[Round "4"]
[White "NovozhilovSemen"]
[Black "IndianSchoolOfSuffering"]
[Result "0-1"]
[WhiteElo "2668"]
[BlackElo "2440"]
[TimeControl "180+1"]
[EndTime "8:38:45 PST"]
[Termination "IndianSchoolOfSuffering won by checkmate"]

1. d4 {[%clk 0:03:00.9]} 1... Nf6 {[%clk 0:02:57.5]} 2. Nf3 {[%clk 0:02:57.3]}
2... c5 {[%clk 0:02:55.8]} 3. d5 {[%clk 0:02:57.4]} 3... e6 {[%clk 0:02:55]} 4.
c4 {[%clk 0:02:57.3]} 4... exd5 {[%clk 0:02:54.9]} 5. cxd5 {[%clk 0:02:58.2]}
5... d6 {[%clk 0:02:54.9]} 6. Nc3 {[%clk 0:02:58.4]} 6... a6 {[%clk 0:02:54.3]}
7. a4 {[%clk 0:02:58.2]} 7... g6 {[%clk 0:02:54.7]} 8. h3 {[%clk 0:02:58.3]}
8... Bg7 {[%clk 0:02:55.1]} 9. e4 {[%clk 0:02:58.9]} 9... O-O {[%clk 0:02:55]}
10. Bd3 {[%clk 0:02:59.1]} 10... Re8 {[%clk 0:02:47.6]} 11. O-O {[%clk 0:02:59]}
11... c4 {[%clk 0:02:41.2]} 12. Bc2 {[%clk 0:02:46]} 12... Nbd7 {[%clk
0:02:40.1]} 13. Nd2 {[%clk 0:02:41.6]} 13... Qc7 {[%clk 0:02:35]} 14. Qe2 {[%clk
0:02:29.9]} 14... Ne5 {[%clk 0:02:30.9]} 15. f4 {[%clk 0:02:19.9]} 15... Nd3
{[%clk 0:02:30.5]} 16. Bxd3 {[%clk 0:01:59.6]} 16... cxd3 {[%clk 0:02:31.4]} 17.
Qxd3 {[%clk 0:02:00.5]} 17... Rb8 {[%clk 0:02:29]} 18. Kh2 {[%clk 0:01:51.2]}
18... Nd7 {[%clk 0:02:22.6]} 19. Re1 {[%clk 0:01:39.6]} 19... Nc5 {[%clk
0:02:18.1]} 20. Qf1 {[%clk 0:01:38.7]} 20... Bd7 {[%clk 0:02:07.3]} 21. Ra3
{[%clk 0:01:34.9]} 21... b5 {[%clk 0:02:05.6]} 22. axb5 {[%clk 0:01:33.1]} 22...
axb5 {[%clk 0:02:06.5]} 23. Na2 {[%clk 0:01:09.7]} 23... b4 {[%clk 0:02:00.1]}
24. Rf3 {[%clk 0:01:08.4]} 24... Bb5 {[%clk 0:01:55.4]} 25. Qg1 {[%clk
0:00:55.1]} 25... Nd3 {[%clk 0:01:45.1]} 26. Rd1 {[%clk 0:00:54.2]} 26... Ra8
{[%clk 0:01:32.5]} 27. Rxd3 {[%clk 0:00:44.3]} 27... Bxd3 {[%clk 0:01:31.3]} 28.
Nxb4 {[%clk 0:00:44.7]} 28... Bxe4 {[%clk 0:01:27.2]} 29. Nxe4 {[%clk
0:00:41.4]} 29... Rxe4 {[%clk 0:01:26.3]} 30. Nc6 {[%clk 0:00:42]} 30... Rae8
{[%clk 0:01:21.3]} 31. b4 {[%clk 0:00:40.2]} 31... Qb7 {[%clk 0:01:18.1]} 32.
Qf2 {[%clk 0:00:33.4]} 32... Re2 {[%clk 0:01:16.9]} 33. Qf3 {[%clk 0:00:31]}
33... Qb5 {[%clk 0:01:16.6]} 34. f5 {[%clk 0:00:25.3]} 34... Be5+ {[%clk
0:01:12.7]} 35. Nxe5 {[%clk 0:00:25.1]} 35... R8xe5 {[%clk 0:01:11.7]} 36. fxg6
{[%clk 0:00:23.5]} 36... hxg6 {[%clk 0:01:09.9]} 37. Qf6 {[%clk 0:00:20.1]}
37... Rxg2+ {[%clk 0:00:59.8]} 38. Kxg2 {[%clk 0:00:18.6]} 38... Qe2+ {[%clk
0:01:00.2]} 39. Kg3 {[%clk 0:00:19]} 39... Qxd1 {[%clk 0:00:59.9]} 40. Bh6
{[%clk 0:00:17.7]} 40... Qg1+ {[%clk 0:00:53.4]} 41. Kh4 {[%clk 0:00:14.4]}
41... Rh5# {[%clk 0:00:51.8]} 0-1

[Event "Early-Titled-Tuesday-Blitz-February-20-2024"]
[Site "Chess.com"]
[Date "2024.02.20"]
[Round "4"]
[White "AlexeiShirov"]
[Black "masnyszachistaaa"]
[Result "1-0"]
[WhiteElo "2845"]
[BlackElo "2570"]
[TimeControl "180+1"]
[EndTime "8:38:48 PST"]
[Termination "AlexeiShirov won by resignation"]

1. e4 {[%clk 0:03:00.9]} 1... e5 {[%clk 0:02:57]} 2. Nf3 {[%clk 0:03:00.7]} 2...
Nc6 {[%clk 0:02:54.7]} 3. Bb5 {[%clk 0:03:00.3]} 3... a6 {[%clk 0:02:55.1]} 4.
Ba4 {[%clk 0:02:59.7]} 4... Nf6 {[%clk 0:02:55.4]} 5. O-O {[%clk 0:02:59.4]}
5... Nxe4 {[%clk 0:02:55.6]} 6. d4 {[%clk 0:02:58.8]} 6... exd4 {[%clk
0:02:54.9]} 7. Re1 {[%clk 0:02:50.2]} 7... d5 {[%clk 0:02:53.9]} 8. Nxd4 {[%clk
0:02:49.1]} 8... Bd6 {[%clk 0:02:52]} 9. Nxc6 {[%clk 0:02:39.7]} 9... Bxh2+
{[%clk 0:02:50.2]} 10. Kf1 {[%clk 0:02:39.1]} 10... Qh4 {[%clk 0:02:51.1]} 11.
Be3 {[%clk 0:02:06.8]} 11... O-O {[%clk 0:01:26.6]} 12. Nd4 {[%clk 0:02:05.7]}
12... Bg4 {[%clk 0:01:22]} 13. Nf3 {[%clk 0:02:03.3]} 13... Qh5 {[%clk
0:01:18.2]} 14. Bb3 {[%clk 0:01:57.4]} 14... c6 {[%clk 0:00:20.4]} 15. Nc3
{[%clk 0:01:55.4]} 15... Bc7 {[%clk 0:00:16.7]} 16. Kg1 {[%clk 0:01:52.1]} 16...
Bh2+ {[%clk 0:00:10.5]} 17. Nxh2 {[%clk 0:01:51.1]} 17... Bxd1 {[%clk 0:00:10]}
18. Raxd1 {[%clk 0:01:51.1]} 18... Nxc3 {[%clk 0:00:06.7]} 19. bxc3 {[%clk
0:01:50]} 19... Rfe8 {[%clk 0:00:07.2]} 20. Rd4 {[%clk 0:01:20.5]} 20... b5
{[%clk 0:00:05]} 21. Nf3 {[%clk 0:01:14.7]} 21... h6 {[%clk 0:00:04.5]} 22. Rh4
{[%clk 0:01:10.7]} 22... Qg6 {[%clk 0:00:03.9]} 23. Rh3 {[%clk 0:01:10.4]} 23...
f6 {[%clk 0:00:02.8]} 24. Rg3 {[%clk 0:01:09]} 24... Qh5 {[%clk 0:00:02.9]} 25.
Rd1 {[%clk 0:01:08.3]} 25... Re7 {[%clk 0:00:03]} 26. Rd4 {[%clk 0:01:07.5]}
26... Rae8 {[%clk 0:00:01.5]} 27. Rh4 {[%clk 0:01:06.7]} 27... Qf5 {[%clk
0:00:01.8]} 28. Rxh6 {[%clk 0:01:04.7]} 28... Rxe3 {[%clk 0:00:02.1]} 29. fxe3
{[%clk 0:01:03.6]} 29... Rxe3 {[%clk 0:00:03]} 30. Rhg6 {[%clk 0:01:00.4]} 30...
Kf8 {[%clk 0:00:02.6]} 31. Rxg7 {[%clk 0:00:58.9]} 31... Qe6 {[%clk 0:00:02.8]}
32. Nd4 {[%clk 0:00:53.7]} 32... Re1+ {[%clk 0:00:02.5]} 33. Kf2 {[%clk
0:00:53.5]} 33... Qe5 {[%clk 0:00:01.5]} 34. Rg8+ {[%clk 0:00:52.6]} 34... Ke7
{[%clk 0:00:02]} 35. Nxc6+ {[%clk 0:00:52.5]} 1-0

[Event "Early-Titled-Tuesday-Blitz-February-20-2024"]
[Site "Chess.com"]
[Date "2024.02.20"]
[Round "4"]
[White "bipe137"]
[Black "Shivananda1964"]
[Result "1-0"]
[WhiteElo "2522"]
[BlackElo "2327"]
[TimeControl "180+1"]
[EndTime "8:38:48 PST"]
[Termination "bipe137 won on time"]

1. d4 {[%clk 0:02:56.7]} 1... Nf6 {[%clk 0:02:59.3]} 2. c4 {[%clk 0:02:57.1]}
2... Nc6 {[%clk 0:02:57.6]} 3. Nf3 {[%clk 0:02:56.8]} 3... e6 {[%clk 0:02:57.1]}
4. Nc3 {[%clk 0:02:56.9]} 4... Bb4 {[%clk 0:02:56.8]} 5. Qc2 {[%clk 0:02:47.9]}
5... d6 {[%clk 0:02:53.7]} 6. g3 {[%clk 0:02:45.8]} 6... O-O {[%clk 0:02:52.7]}
7. Bg2 {[%clk 0:02:46.3]} 7... e5 {[%clk 0:02:52.9]} 8. dxe5 {[%clk 0:02:45.9]}
8... dxe5 {[%clk 0:02:48.3]} 9. O-O {[%clk 0:02:45.8]} 9... Nd4 {[%clk
0:02:02.4]} 10. Nxd4 {[%clk 0:02:40.9]} 10... exd4 {[%clk 0:02:02.2]} 11. Ne4
{[%clk 0:02:40.2]} 11... Bf5 {[%clk 0:01:43]} 12. Bg5 {[%clk 0:02:32.8]} 12...
Bxe4 {[%clk 0:01:23.3]} 13. Bxe4 {[%clk 0:02:31.2]} 13... h6 {[%clk 0:01:20.1]}
14. Bxf6 {[%clk 0:02:30]} 14... Qxf6 {[%clk 0:01:20.2]} 15. a3 {[%clk
0:02:29.4]} 15... Bd6 {[%clk 0:01:02.1]} 16. c5 {[%clk 0:02:06.4]} 16... Be7
{[%clk 0:00:56.3]} 17. b4 {[%clk 0:02:04.7]} 17... c6 {[%clk 0:00:53.4]} 18.
Rad1 {[%clk 0:02:01.6]} 18... Rad8 {[%clk 0:00:49.7]} 19. Qc4 {[%clk 0:01:59.4]}
19... Qe5 {[%clk 0:00:45.4]} 20. Bb1 {[%clk 0:01:58.8]} 20... Bf6 {[%clk
0:00:41.4]} 21. Rd2 {[%clk 0:01:52.7]} 21... h5 {[%clk 0:00:39.2]} 22. Qd3
{[%clk 0:01:43.9]} 22... g6 {[%clk 0:00:38.4]} 23. h4 {[%clk 0:01:43.6]} 23...
Rfe8 {[%clk 0:00:36.7]} 24. Rfd1 {[%clk 0:01:37.1]} 24... Re7 {[%clk 0:00:32.3]}
25. Ba2 {[%clk 0:01:36]} 25... Rde8 {[%clk 0:00:30]} 26. Qxg6+ {[%clk
0:01:35.1]} 26... Kf8 {[%clk 0:00:25.9]} 27. Qh7 {[%clk 0:01:32.9]} 27... Bg7
{[%clk 0:00:20.5]} 28. Rxd4 {[%clk 0:01:30.2]} 28... Qxe2 {[%clk 0:00:18.6]} 29.
R4d2 {[%clk 0:01:27]} 29... Qf3 {[%clk 0:00:15.8]} 30. Bc4 {[%clk 0:01:09.1]}
30... Re1+ {[%clk 0:00:14.6]} 31. Rxe1 {[%clk 0:00:43.5]} 31... Rxe1+ {[%clk
0:00:13.5]} 32. Bf1 {[%clk 0:00:44.2]} 32... Qf6 {[%clk 0:00:02.4]} 33. Qd3
{[%clk 0:00:41.6]} 1-0

[Event "Early-Titled-Tuesday-Blitz-February-20-2024"]
[Site "Chess.com"]
[Date "2024.02.20"]
[Round "4"]
[White "Ishowmoves57"]
[Black "treadstone_71"]
[Result "0-1"]
[WhiteElo "2141"]
[BlackElo "2334"]
[TimeControl "180+1"]
[EndTime "8:38:48 PST"]
[Termination "treadstone_71 won by checkmate"]

1. e4 {[%clk 0:03:00.2]} 1... c5 {[%clk 0:02:58.6]} 2. Nf3 {[%clk 0:03:00.4]}
2... Nc6 {[%clk 0:02:58.5]} 3. b3 {[%clk 0:03:00.1]} 3... e5 {[%clk 0:02:53.9]}
4. Nc3 {[%clk 0:02:59.2]} 4... g6 {[%clk 0:02:52.7]} 5. Nd5 {[%clk 0:02:58.8]}
5... Bg7 {[%clk 0:02:52.1]} 6. Be2 {[%clk 0:02:58.7]} 6... d6 {[%clk 0:02:49.4]}
7. O-O {[%clk 0:02:59.2]} 7... Nge7 {[%clk 0:02:48.5]} 8. c3 {[%clk 0:02:59.5]}
8... O-O {[%clk 0:02:45.7]} 9. Bb2 {[%clk 0:02:57.3]} 9... Nxd5 {[%clk
0:02:43.7]} 10. exd5 {[%clk 0:02:57.4]} 10... Ne7 {[%clk 0:02:44]} 11. c4 {[%clk
0:02:42.1]} 11... h6 {[%clk 0:02:37.5]} 12. Ne1 {[%clk 0:02:39.9]} 12... Nf5
{[%clk 0:02:31.7]} 13. f4 {[%clk 0:02:35.2]} 13... Nd4 {[%clk 0:02:29.5]} 14.
Nc2 {[%clk 0:02:28.4]} 14... exf4 {[%clk 0:02:11.4]} 15. Nxd4 {[%clk 0:02:24.7]}
15... cxd4 {[%clk 0:02:11.5]} 16. d3 {[%clk 0:02:24.4]} 16... g5 {[%clk
0:02:08.2]} 17. Qe1 {[%clk 0:02:13.8]} 17... Be5 {[%clk 0:01:41.1]} 18. Qf2
{[%clk 0:02:08.9]} 18... Qf6 {[%clk 0:01:40.6]} 19. Rae1 {[%clk 0:02:00.6]}
19... Bf5 {[%clk 0:01:37.3]} 20. g4 {[%clk 0:01:45.7]} 20... Bg6 {[%clk
0:01:29.9]} 21. Rd1 {[%clk 0:01:39]} 21... Rae8 {[%clk 0:01:21.8]} 22. Bf3
{[%clk 0:01:39.3]} 22... Qg7 {[%clk 0:01:21.4]} 23. Rfe1 {[%clk 0:01:33.8]}
23... b6 {[%clk 0:01:18.9]} 24. Be4 {[%clk 0:01:30.9]} 24... f5 {[%clk
0:01:11.4]} 25. gxf5 {[%clk 0:01:23.6]} 25... Bxf5 {[%clk 0:01:12.3]} 26. Bxf5
{[%clk 0:01:23.4]} 26... Rxf5 {[%clk 0:01:11.5]} 27. Re4 {[%clk 0:01:24.1]}
27... g4 {[%clk 0:01:05.2]} 28. Rde1 {[%clk 0:01:05]} 28... Ref8 {[%clk
0:00:50.5]} 29. Bxd4 {[%clk 0:01:03.3]} 29... g3 {[%clk 0:00:50.6]} 30. hxg3
{[%clk 0:00:53.8]} 30... fxg3 {[%clk 0:00:51.5]} 31. Qb2 {[%clk 0:00:44.4]}
31... g2 {[%clk 0:00:35.1]} 32. Bxe5 {[%clk 0:00:36.9]} 32... Rf1+ {[%clk
0:00:31.9]} 33. Kh2 {[%clk 0:00:19.5]} 33... g1=Q+ {[%clk 0:00:31.4]} 34. Kh3
{[%clk 0:00:18.7]} 34... R1f3+ {[%clk 0:00:26.3]} 35. Kh4 {[%clk 0:00:17.3]}
35... Q7g5# {[%clk 0:00:26.3]} 0-1

[Event "Early-Titled-Tuesday-Blitz-February-20-2024"]
[Site "Chess.com"]
[Date "2024.02.20"]
[Round "4"]
[White "RCone"]
[Black "tarno17"]
[Result "0-1"]
[WhiteElo "2425"]
[BlackElo "2146"]
[TimeControl "180+1"]
[EndTime "8:38:49 PST"]
[Termination "tarno17 won on time"]

1. e4 {[%clk 0:02:04.7]} 1... c5 {[%clk 0:02:59.1]} 2. Nc3 {[%clk 0:02:04.1]}
2... a6 {[%clk 0:02:57.9]} 3. g3 {[%clk 0:02:01.4]} 3... e6 {[%clk 0:02:56.8]}
4. Bg2 {[%clk 0:01:58.6]} 4... Nc6 {[%clk 0:02:54.1]} 5. d3 {[%clk 0:01:56]}
5... d6 {[%clk 0:02:52.9]} 6. f4 {[%clk 0:01:55.5]} 6... Nf6 {[%clk 0:02:53.2]}
7. Nf3 {[%clk 0:01:53.2]} 7... Be7 {[%clk 0:02:53.8]} 8. a4 {[%clk 0:01:51.7]}
8... Qc7 {[%clk 0:02:47.6]} 9. O-O {[%clk 0:01:50.2]} 9... b6 {[%clk 0:02:46]}
10. h3 {[%clk 0:01:50]} 10... Bb7 {[%clk 0:02:46]} 11. Ne2 {[%clk 0:01:49.6]}
11... O-O {[%clk 0:02:33.7]} 12. g4 {[%clk 0:01:48.6]} 12... b5 {[%clk
0:02:32.9]} 13. Ng3 {[%clk 0:01:40.5]} 13... Nd4 {[%clk 0:02:12.5]} 14. g5
{[%clk 0:01:31]} 14... Nd7 {[%clk 0:02:11.4]} 15. Be3 {[%clk 0:01:26.8]} 15...
Nxf3+ {[%clk 0:02:07.8]} 16. Qxf3 {[%clk 0:01:23.7]} 16... d5 {[%clk 0:02:08]}
17. Qg4 {[%clk 0:01:06.2]} 17... c4 {[%clk 0:01:50.4]} 18. Rf2 {[%clk
0:00:52.1]} 18... cxd3 {[%clk 0:01:48]} 19. cxd3 {[%clk 0:00:51.9]} 19... bxa4
{[%clk 0:01:29.9]} 20. Rxa4 {[%clk 0:00:50.2]} 20... Bc5 {[%clk 0:01:20.4]} 21.
Bxc5 {[%clk 0:00:48.2]} 21... Nxc5 {[%clk 0:01:21.1]} 22. Ra3 {[%clk 0:00:48.3]}
22... Qb6 {[%clk 0:01:15]} 23. e5 {[%clk 0:00:40.1]} 23... d4 {[%clk 0:00:56.5]}
24. Bxb7 {[%clk 0:00:14.3]} 24... Qxb7 {[%clk 0:00:57.4]} 25. Qf3 {[%clk
0:00:11.4]} 25... Qb4 {[%clk 0:00:54.7]} 26. Ne4 {[%clk 0:00:09.6]} 26... Rac8
{[%clk 0:00:47.1]} 27. Nd6 {[%clk 0:00:08.8]} 27... Rc7 {[%clk 0:00:44.2]} 28.
Kg2 {[%clk 0:00:09.3]} 28... Nb3 {[%clk 0:00:35.9]} 29. h4 {[%clk 0:00:06.8]}
29... Nd2 {[%clk 0:00:33.7]} 30. Qe2 {[%clk 0:00:05.9]} 30... Rc2 {[%clk
0:00:32.2]} 0-1

[Event "Early-Titled-Tuesday-Blitz-February-20-2024"]
[Site "Chess.com"]
[Date "2024.02.20"]
[Round "4"]
[White "Larina_Maria"]
[Black "tetrix83"]
[Result "0-1"]
[WhiteElo "2284"]
[BlackElo "2509"]
[TimeControl "180+1"]
[EndTime "8:38:52 PST"]
[Termination "tetrix83 won by resignation"]

1. e4 {[%clk 0:03:00.4]} 1... c5 {[%clk 0:02:50.8]} 2. Nc3 {[%clk 0:03:00.1]}
2... Nc6 {[%clk 0:02:49.7]} 3. Bb5 {[%clk 0:02:59.3]} 3... Nd4 {[%clk
0:02:49.2]} 4. Nf3 {[%clk 0:02:59]} 4... a6 {[%clk 0:02:49.3]} 5. Bd3 {[%clk
0:02:58.4]} 5... g6 {[%clk 0:02:49.3]} 6. Nxd4 {[%clk 0:02:52.6]} 6... cxd4
{[%clk 0:02:48.6]} 7. Ne2 {[%clk 0:02:50.9]} 7... Bg7 {[%clk 0:02:48.8]} 8. c3
{[%clk 0:02:50.5]} 8... dxc3 {[%clk 0:02:45.2]} 9. dxc3 {[%clk 0:02:50.3]} 9...
d6 {[%clk 0:02:39.7]} 10. O-O {[%clk 0:02:49.8]} 10... Nf6 {[%clk 0:02:39.9]}
11. Nd4 {[%clk 0:02:45.8]} 11... O-O {[%clk 0:02:39.7]} 12. Bg5 {[%clk
0:02:38.3]} 12... Qc7 {[%clk 0:02:39.5]} 13. Qd2 {[%clk 0:02:36.7]} 13... Re8
{[%clk 0:02:37.4]} 14. a4 {[%clk 0:02:33.8]} 14... b6 {[%clk 0:02:37.4]} 15. Qe2
{[%clk 0:02:14.6]} 15... Bb7 {[%clk 0:02:33.3]} 16. Kh1 {[%clk 0:02:14.2]} 16...
e5 {[%clk 0:02:32.9]} 17. Nf3 {[%clk 0:02:10.7]} 17... d5 {[%clk 0:02:33.2]} 18.
Bxf6 {[%clk 0:02:01]} 18... Bxf6 {[%clk 0:02:32.7]} 19. Rfe1 {[%clk 0:01:51.2]}
19... Bg7 {[%clk 0:02:27.7]} 20. exd5 {[%clk 0:01:38.3]} 20... Bxd5 {[%clk
0:02:28.6]} 21. Ng5 {[%clk 0:01:13.3]} 21... e4 {[%clk 0:02:21.3]} 22. Bxa6
{[%clk 0:01:08.6]} 22... h6 {[%clk 0:01:44.3]} 23. Nh3 {[%clk 0:01:08.2]} 23...
Rxa6 {[%clk 0:01:43.9]} 24. Qxa6 {[%clk 0:01:05.9]} 24... Bc4 {[%clk 0:01:43.8]}
25. Rxe4 {[%clk 0:00:47.9]} 25... Bxa6 {[%clk 0:01:43.8]} 26. Rxe8+ {[%clk
0:00:47]} 26... Kh7 {[%clk 0:01:44.4]} 27. Rae1 {[%clk 0:00:42.8]} 27... Bf6
{[%clk 0:01:29.9]} 28. Kg1 {[%clk 0:00:31]} 28... Bb7 {[%clk 0:01:17.9]} 29. f3
{[%clk 0:00:30.7]} 29... Bc6 {[%clk 0:01:13.6]} 30. R8e2 {[%clk 0:00:24.6]}
30... Bxa4 {[%clk 0:01:13.1]} 31. Nf2 {[%clk 0:00:24.8]} 31... Bb5 {[%clk
0:01:12]} 32. Ne4 {[%clk 0:00:21.1]} 32... Bg7 {[%clk 0:01:05.7]} 33. Rd2 {[%clk
0:00:20.8]} 33... Qe5 {[%clk 0:00:55.4]} 34. h4 {[%clk 0:00:18.1]} 34... Qf4
{[%clk 0:00:50]} 35. Nf2 {[%clk 0:00:06.6]} 35... Qxd2 {[%clk 0:00:49.4]} 0-1

[Event "Early-Titled-Tuesday-Blitz-February-20-2024"]
[Site "Chess.com"]
[Date "2024.02.20"]
[Round "4"]
[White "Nemegejas"]
[Black "CFN_Good_Evening"]
[Result "1-0"]
[WhiteElo "2798"]
[BlackElo "2215"]
[TimeControl "180+1"]
[EndTime "8:38:53 PST"]
[Termination "Nemegejas won by resignation"]

1. Nf3 {[%clk 0:03:00.9]} 1... d5 {[%clk 0:02:59.3]} 2. g3 {[%clk 0:03:01.6]}
2... Bg4 {[%clk 0:02:58.8]} 3. Bg2 {[%clk 0:03:02]} 3... Nd7 {[%clk 0:02:58.7]}
4. h3 {[%clk 0:03:02.5]} 4... Bxf3 {[%clk 0:02:58.4]} 5. Bxf3 {[%clk 0:03:03.4]}
5... c6 {[%clk 0:02:58.3]} 6. Bg2 {[%clk 0:03:03.6]} 6... Ngf6 {[%clk
0:02:57.8]} 7. d3 {[%clk 0:03:04.1]} 7... e6 {[%clk 0:02:56.6]} 8. O-O {[%clk
0:03:04.7]} 8... Bc5 {[%clk 0:02:55.9]} 9. c4 {[%clk 0:03:04.8]} 9... O-O {[%clk
0:02:53.4]} 10. Nc3 {[%clk 0:03:04.9]} 10... a5 {[%clk 0:02:52.7]} 11. b3 {[%clk
0:03:04.3]} 11... Re8 {[%clk 0:02:43.7]} 12. Bb2 {[%clk 0:03:03.5]} 12... Nb6
{[%clk 0:02:29.3]} 13. a3 {[%clk 0:02:57.2]} 13... e5 {[%clk 0:02:21.5]} 14. Qc2
{[%clk 0:02:57.3]} 14... Bd4 {[%clk 0:02:18.4]} 15. e3 {[%clk 0:02:56.5]} 15...
Bxc3 {[%clk 0:02:11.5]} 16. Qxc3 {[%clk 0:02:49.9]} 16... Qe7 {[%clk 0:01:55.1]}
17. Rfe1 {[%clk 0:02:47.4]} 17... e4 {[%clk 0:01:53.8]} 18. cxd5 {[%clk
0:02:05.3]} 18... Nbxd5 {[%clk 0:01:49.7]} 19. Qc2 {[%clk 0:02:05.7]} 19... a4
{[%clk 0:01:45]} 20. b4 {[%clk 0:02:03.3]} 20... h5 {[%clk 0:01:26.4]} 21. Rad1
{[%clk 0:01:59.3]} 21... h4 {[%clk 0:01:21.1]} 22. g4 {[%clk 0:01:59.7]} 22...
Nc7 {[%clk 0:01:15.1]} 23. dxe4 {[%clk 0:01:28.8]} 23... Nxe4 {[%clk 0:01:14.9]}
24. Rd4 {[%clk 0:01:28.8]} 24... Ng5 {[%clk 0:01:09.6]} 25. f4 {[%clk
0:01:26.2]} 25... Nge6 {[%clk 0:01:05.2]} 26. Re4 {[%clk 0:01:25.5]} 26... Qf8
{[%clk 0:00:56.1]} 27. g5 {[%clk 0:01:25.4]} 27... Nd5 {[%clk 0:00:52.8]} 28.
Qf2 {[%clk 0:01:25.4]} 28... f5 {[%clk 0:00:47.5]} 29. Re5 {[%clk 0:01:23.9]}
29... Nec7 {[%clk 0:00:38.2]} 30. Qxh4 {[%clk 0:01:20]} 30... Qf7 {[%clk
0:00:38.6]} 31. e4 {[%clk 0:01:16.5]} 31... fxe4 {[%clk 0:00:37.9]} 32. Bxe4
{[%clk 0:01:13]} 32... Rxe5 {[%clk 0:00:28]} 33. Bxe5 {[%clk 0:01:06.7]} 33...
Re8 {[%clk 0:00:19.7]} 34. Qh7+ {[%clk 0:00:53.4]} 34... Kf8 {[%clk 0:00:19.8]}
35. Bg6 {[%clk 0:00:53.9]} 35... Qg8 {[%clk 0:00:19.8]} 36. Bd6+ {[%clk
0:00:49.8]} 36... Ne7 {[%clk 0:00:07.8]} 37. Qxg8+ {[%clk 0:00:48.7]} 37... Kxg8
{[%clk 0:00:08.4]} 38. Bxe8 {[%clk 0:00:49.6]} 1-0